bitfinex-derivatives/quotes_BTCF0:USTF0_20210706
["timestamp","ask_amount","ask_price","bid_price","bid_amount"]
[1625545930803,0.159,34523.0,34495.0,0.9138]
[1625545931060,0.159,34523.0,34496.0,0.057]
[1625545931360,0.118,34523.0,34496.0,0.057]
[1625545931555,0.48115088,34521.0,34516.0,0.24057544]
[1625545931655,0.54015088,34521.0,34516.0,0.24057544]
[1625545932308,0.64015088,34521.0,34516.0,0.24057544]
[1625545932669,0.34126,34524.0,34516.0,0.24057544]
[1625545932782,0.057,34529.0,34516.0,0.24057544]
[1625545932783,0.057,34529.0,34520.0,0.063]
[1625545932870,0.06,34542.0,34520.0,0.063]
[1625545932871,0.06,34542.0,34520.0,0.122]
[1625545933079,0.178,34542.0,34520.0,0.122]
[1625545933171,0.057,34541.0,34520.0,0.122]
[1625545933259,0.057,34541.0,34535.0,0.001]
[1625545933361,0.06,34542.0,34535.0,0.001]
[1625545933461,0.06,34542.0,34535.0,0.3273]
[1625545933559,0.119,34542.0,34541.0,0.24057544]
[1625545933661,0.119,34542.0,34541.0,0.29957544]
[1625545933759,0.178,34542.0,34541.0,0.29957544]
[1625545933860,0.119,34542.0,34541.0,0.29957544]
[1625545934259,0.119,34542.0,34541.0,0.24057544]
[1625545936013,0.119,34542.0,34541.0,0.29957544]
[1625545936315,0.118,34542.0,34541.0,0.29957544]
[1625545936665,0.059,34542.0,34541.0,0.29957544]
[1625545937821,0.059,34542.0,34541.0,0.24057544]
[1625545938119,0.059,34542.0,34541.0,0.29957544]
[1625545938419,0.059,34542.0,34541.0,0.24057544]
[1625545939525,0.059,34542.0,34541.0,0.29957544]
[1625545940125,0.059,34542.0,34541.0,0.24057544]
[1625545940226,0.118,34542.0,34541.0,0.24057544]
[1625545940329,0.059,34542.0,34541.0,0.24057544]
[1625545940726,0.059,34542.0,34541.0,0.29957544]
[1625545940877,1.59093393,34542.0,34541.0,0.29957544]
[1625545940979,1.59093393,34542.0,34541.0,0.35857544]
[1625545941079,1.59093393,34542.0,34541.0,0.63983544]
[1625545941582,1.59093393,34542.0,34541.0,0.58083544]
[1625545941886,0.059,34542.0,34541.0,0.58083544]
[1625545942583,0.059,34542.0,34541.0,0.63983544]
[1625545943786,1.42018574,34542.0,34541.0,0.63983544]
[1625545944338,0.059,34542.0,34541.0,0.63983544]
[1625545945240,0.059,34542.0,34541.0,0.58083544]
[1625545945442,0.059,34542.0,34541.0,0.63983544]
[1625545947097,0.001,34544.0,34541.0,0.63983544]
[1625545947648,0.001,34544.0,34543.0,0.24057544]
[1625545947748,0.001,34544.0,34543.0,0.35857544]
[1625545948649,0.001,34544.0,34543.0,0.29957544]
[1625545948748,1.36102177,34548.0,34546.0,0.058]
[1625545948848,1.36102177,34548.0,34547.0,4.7294]
[1625545949047,1.36102177,34548.0,34547.0,4.8474]
[1625545949451,1.19102445,34548.0,34547.0,4.8474]
[1625545949749,1.19102445,34548.0,34547.0,5.32855088]
[1625545950200,0.002,34549.0,34547.0,5.32855088]
[1625545950760,0.34037831,34548.0,34547.0,5.32855088]
[1625545950951,0.28137831,34548.0,34547.0,5.26955088]
[1625545951603,0.28137831,34548.0,34547.0,5.32855088]
[1625545954756,0.45162101,34548.0,34547.0,5.32855088]
[1625545955156,0.002,34549.0,34547.0,5.32855088]
[1625545955560,0.17026051,34548.0,34547.0,5.32855088]
[1625545956657,1.19089883,34552.0,34547.0,5.32855088]
[1625545957209,1.19073604,34553.0,34547.0,5.32855088]
[1625545957359,0.001,34550.0,34547.0,5.32855088]
[1625545958009,0.001,34550.0,34549.0,0.24057544]
[1625545958108,0.001,34550.0,34549.0,0.61103544]
[1625545958209,0.001,34550.0,34549.0,0.67003544]
[1625545958661,1.06027225,34554.0,34549.0,0.67003544]
[1625545958760,1.06027225,34554.0,34551.0,0.059]
[1625545958863,1.19261194,34555.0,34554.0,0.059]
[1625545959061,1.19261194,34555.0,34554.0,0.118]
[1625545959262,0.68871194,34555.0,34554.0,0.12137]
[1625545959463,0.62971194,34555.0,34554.0,0.06237]
[1625545959664,1.02044722,34558.0,34554.0,0.06237]
[1625545959872,1.02044722,34558.0,34554.0,0.12137]
[1625545960014,1.02044722,34558.0,34557.0,0.72172632]
[1625545960116,1.02044722,34558.0,34557.0,1.07027632]
[1625545960217,1.02044722,34558.0,34557.0,1.12927632]
[1625545960315,1.02041768,34559.0,34557.0,1.12927632]
[1625545960818,1.02313695,34560.0,34557.0,1.12927632]
[1625545961365,0.52263695,34560.0,34557.0,1.12927632]
[1625545961616,1.02013609,34559.0,34557.0,1.12927632]
[1625545962317,0.004,34565.0,34557.0,1.12927632]
[1625545962619,0.0171581,34564.0,34557.0,1.12927632]
[1625545963324,0.003,34561.0,34557.0,1.12927632]
[1625545964022,0.003,34561.0,34560.0,0.24057544]
[1625545964172,0.003,34561.0,34560.0,0.35857544]
[1625545966277,0.001,34564.0,34560.0,0.35857544]
[1625545968132,0.001,34564.0,34563.0,0.06934289]
[1625545968233,0.001,34564.0,34563.0,0.18734289]
[1625545970088,0.001,34564.0,34563.0,0.42791833]
[1625545976754,0.01815159,34564.0,34563.0,0.42791833]
[1625545976955,0.01815159,34564.0,34563.0,0.36891833]
[1625545977108,0.01815159,34564.0,34563.0,0.30991833]
[1625545977206,0.01815159,34564.0,34563.0,0.36891833]
[1625545977307,0.01815159,34564.0,34563.0,0.30991833]
[1625545977407,0.01815159,34564.0,34563.0,0.36891833]
[1625545977606,0.01815159,34564.0,34563.0,0.42791833]
[1625545979362,0.01715159,34564.0,34563.0,0.42791833]
[1625545979563,1.2048327,34564.0,34563.0,0.42791833]
[1625545981972,1.2048327,34564.0,34563.0,0.36891833]
[1625545982625,1.2048327,34564.0,34563.0,0.42791833]
[1625545982825,1.2048327,34564.0,34563.0,0.36891833]
[1625545983176,1.2048327,34564.0,34563.0,0.42791833]
[1625545983726,2.56193226,34564.0,34563.0,0.42791833]
[1625545984278,1.2048327,34564.0,34563.0,0.42791833]
[1625545985277,0.01715159,34564.0,34563.0,0.42791833]
[1625545985778,1.20447323,34564.0,34563.0,0.42791833]
[1625545986082,0.01715159,34564.0,34563.0,0.42791833]
[1625545987086,0.01715159,34564.0,34563.0,0.36891833]
[1625545987288,1.20429709,34565.0,34563.0,0.36891833]
[1625545987388,1.20429709,34565.0,34563.0,0.42791833]
[1625545987488,1.20431291,34564.0,34563.0,0.42791833]
[1625545987838,1.2386305,34564.0,34563.0,0.42791833]
[1625545988490,0.05147544,34564.0,34563.0,0.42791833]
[1625545989040,0.72989987,34564.0,34563.0,0.42791833]
[1625545989791,0.72989987,34564.0,34563.0,0.36891833]
[1625545990144,1.91715278,34564.0,34563.0,0.36891833]
[1625545991848,2.93623835,34564.0,34563.0,0.36891833]
[1625545991950,2.93623835,34564.0,34563.0,0.30991833]
[1625545992200,4.35403879,34564.0,34563.0,0.30991833]
[1625545992299,4.83518967,34564.0,34563.0,0.30991833]
[1625545992451,4.89418967,34564.0,34563.0,0.30991833]
[1625545992652,6.42500653,34564.0,34563.0,0.30991833]
[1625545993150,6.36600653,34564.0,34563.0,0.30991833]
[1625545993250,6.42500653,34564.0,34563.0,0.30991833]
[1625545993352,6.36600653,34564.0,34563.0,0.30991833]
[1625545993449,6.42500653,34564.0,34563.0,0.30991833]
[1625545993550,6.42500653,34564.0,34560.0,0.24157544]
[1625545993651,6.42500653,34564.0,34560.0,0.001]
[1625545993853,5.78451666,34561.0,34560.0,0.001]
[1625545993954,6.11759666,34561.0,34560.0,0.001]
[1625545994256,6.11759666,34561.0,34555.0,0.002]
[1625545994257,8.35165592,34561.0,34555.0,0.002]
[1625545994353,8.29265592,34561.0,34555.0,0.002]
[1625545994454,8.23365592,34561.0,34555.0,0.002]
[1625545994551,8.23365592,34561.0,34555.0,0.06]
[1625545994651,8.23365592,34561.0,34555.0,0.119]
[1625545994752,4.25543838,34556.0,34555.0,0.119]
[1625545995051,4.27259961,34556.0,34555.0,0.119]
[1625545995253,2.91090698,34556.0,34555.0,0.119]
[1625545996256,3.15148242,34556.0,34555.0,0.119]
[1625545997007,3.15148242,34556.0,34555.0,0.06]
[1625545997759,4.51418961,34556.0,34555.0,0.06]
[1625545998060,4.57318961,34556.0,34555.0,0.06]
[1625545998158,4.57318961,34556.0,34555.0,0.001]
[1625545998460,4.60751463,34556.0,34555.0,0.001]
[1625545998558,6.14060185,34556.0,34555.0,0.001]
[1625545998863,6.08160185,34556.0,34555.0,0.001]
[1625545999061,6.08160185,34556.0,34555.0,0.119]
[1625545999313,4.51418961,34556.0,34555.0,0.119]
[1625545999864,4.51418961,34556.0,34555.0,0.06]
[1625546000363,4.80757961,34556.0,34555.0,0.001]
[1625546000568,4.90090477,34556.0,34555.0,0.001]
[1625546000767,6.4364707,34556.0,34555.0,0.001]
[1625546001218,8.14277507,34556.0,34555.0,0.001]
[1625546001768,8.20177507,34556.0,34555.0,0.001]
[1625546001870,8.08377507,34556.0,34555.0,0.001]
[1625546002219,8.14277507,34556.0,34555.0,0.001]
[1625546002416,8.08377507,34556.0,34555.0,0.001]
[1625546002871,8.14277507,34556.0,34555.0,0.001]
[1625546003019,8.20177507,34556.0,34555.0,0.001]
[1625546003220,8.14277507,34556.0,34555.0,0.001]
[1625546003621,8.08377507,34556.0,34555.0,0.001]
[1625546004375,8.20177507,34556.0,34555.0,0.001]
[1625546004825,8.14277507,34556.0,34555.0,0.001]
[1625546005375,8.10844991,34556.0,34555.0,0.001]
[1625546005776,8.16744991,34556.0,34555.0,0.001]
[1625546005927,8.20177886,34556.0,34555.0,0.001]
[1625546006727,8.14277886,34556.0,34555.0,0.001]
[1625546006979,8.10844991,34556.0,34555.0,0.001]
[1625546009792,8.04944991,34556.0,34555.0,0.001]
[1625546010391,6.34314554,34556.0,34555.0,0.001]
[1625546015304,6.40214554,34556.0,34555.0,0.001]
[1625546016306,8.11023851,34556.0,34555.0,0.001]
[1625546016756,6.40214554,34556.0,34555.0,0.001]
[1625546017207,6.34314554,34556.0,34555.0,0.001]
[1625546017456,6.40214554,34556.0,34555.0,0.001]
[1625546017706,6.43647283,34556.0,34555.0,0.001]
[1625546018258,6.40214554,34556.0,34555.0,0.001]
[1625546018507,6.43647273,34556.0,34555.0,0.001]
[1625546019511,6.94895515,34556.0,34555.0,0.001]
[1625546021014,6.88995515,34556.0,34555.0,0.001]
[1625546021115,6.88995515,34556.0,34555.0,0.06]
[1625546021216,6.59656515,34556.0,34555.0,0.119]
[1625546021418,6.56223796,34556.0,34555.0,0.119]
[1625546021832,5.02667203,34556.0,34555.0,0.119]
[1625546022468,5.02667203,34556.0,34555.0,0.35957544]
[1625546022668,4.78609659,34556.0,34555.0,0.35957544]
[1625546023122,2.23188708,34556.0,34555.0,0.86518216]
[1625546023423,1.21057506,34556.0,34555.0,1.53845006]
[1625546024326,1.19341383,34556.0,34555.0,1.53845006]
[1625546024475,1.19341383,34556.0,34555.0,1.7790255]
[1625546025178,0.51248242,34556.0,34555.0,2.7876101]
[1625546026380,1.19549315,34556.0,34555.0,1.7790255]
[1625546026630,1.28179315,34556.0,34555.0,1.7790255]
[1625546026731,1.19549315,34556.0,34555.0,2.78867954]
[1625546027286,1.19549315,34556.0,34555.0,1.7790255]
[1625546027389,1.19549315,34556.0,34555.0,1.7200255]
[1625546027789,1.19549315,34556.0,34555.0,2.73835013]
[1625546027887,1.19549315,34556.0,34555.0,2.79735013]
[1625546028738,2.21998455,34556.0,34555.0,1.7790255]
[1625546033100,1.19549315,34556.0,34555.0,2.79659425]
[1625546033500,1.19549315,34556.0,34555.0,2.73759425]
[1625546033602,2.22028262,34556.0,34555.0,2.73759425]
[1625546033701,2.22028262,34556.0,34555.0,1.7200255]
[1625546033952,3.41595558,34556.0,34555.0,0.54115088]
[1625546034201,3.41595558,34556.0,34555.0,0.48215088]
[1625546034500,3.43311663,34556.0,34555.0,0.48215088]
[1625546034601,3.67369207,34556.0,34555.0,0.24157544]
[1625546034854,5.04038269,34556.0,34555.0,0.24157544]
[1625546035257,6.5779866,34556.0,34555.0,0.24157544]
[1625546036406,6.6638866,34556.0,34555.0,0.24157544]
[1625546036509,6.5779866,34556.0,34555.0,0.24157544]
[1625546037360,6.5779866,34556.0,34555.0,0.30057544]
[1625546037863,6.5779866,34556.0,34555.0,0.24157544]
[1625546038460,6.5779866,34556.0,34555.0,0.30057544]
[1625546038861,6.5779866,34556.0,34555.0,0.24157544]
[1625546038961,6.5779866,34556.0,34555.0,0.30057544]
[1625546042415,5.04038269,34556.0,34555.0,0.35957544]
[1625546045074,5.04038269,34556.0,34555.0,0.30057544]
[1625546045523,5.04038269,34556.0,34555.0,0.35957544]
[1625546049632,5.29079269,34556.0,34555.0,0.35957544]
[1625546049782,6.82939868,34556.0,34555.0,0.35957544]
[1625546049982,6.82939868,34556.0,34555.0,0.30057544]
[1625546050282,6.82939868,34556.0,34555.0,0.24157544]
[1625546052589,6.88839868,34556.0,34555.0,0.24157544]
[1625546052690,7.36954956,34556.0,34555.0,0.001]
[1625546052791,7.42854956,34556.0,34555.0,0.001]
[1625546052892,7.46288064,34556.0,34555.0,0.001]
[1625546053092,7.46288064,34556.0,34550.0,0.24057544]
[1625546053093,9.1729947,34556.0,34550.0,0.24057544]
[1625546053544,0.05149749,34555.0,34550.0,0.24057544]
[1625546053644,6.32803832,34551.0,34550.0,0.24057544]
[1625546054245,6.34520417,34551.0,34550.0,0.24057544]
[1625546054647,6.58577961,34551.0,34550.0,0.24057544]
[1625546057204,6.58577961,34551.0,34550.0,0.32817544]
[1625546057354,6.58577961,34551.0,34550.0,0.24057544]
[1625546058805,6.58577961,34551.0,34550.0,0.29957544]
[1625546059856,6.58577961,34551.0,34550.0,0.24057544]
[1625546061161,6.58577961,34551.0,34550.0,0.29957544]
[1625546061612,6.58577961,34551.0,34550.0,0.35857544]
[1625546062213,5.04660561,34551.0,34550.0,0.35857544]
[1625546062614,5.04660561,34551.0,34550.0,0.44352588]
[1625546062763,5.04660561,34551.0,34550.0,0.68410132]
[1625546065622,5.04660561,34551.0,34550.0,0.59915088]
[1625546066476,5.04660561,34551.0,34550.0,0.54015088]
[1625546066779,5.41807561,34551.0,34548.0,0.08506198]
[1625546067078,0.01716551,34550.0,34548.0,0.08506198]
[1625546068029,0.07616551,34550.0,34548.0,0.08506198]
[1625546068131,0.01716551,34550.0,34548.0,0.08506198]
[1625546068283,1.36790629,34549.0,34548.0,0.08506198]
[1625546068383,6.32680168,34549.0,34546.0,0.24157544]
[1625546068481,6.32680168,34549.0,34546.0,0.30057544]
[1625546068582,6.32680168,34549.0,34546.0,0.24157544]
[1625546068682,0.01716579,34548.0,34546.0,0.30057544]
[1625546068783,6.56739712,34547.0,34546.0,0.30057544]
[1625546069084,5.02851905,34547.0,34546.0,0.30057544]
[1625546069283,5.04568489,34547.0,34546.0,0.30057544]
[1625546069684,5.04568489,34547.0,34546.0,0.35957544]
[1625546070239,5.04568489,34547.0,34546.0,1.55059644]
[1625546070687,5.04568489,34547.0,34546.0,3.75975319]
[1625546070688,2.48083111,34547.0,34546.0,3.75975319]
[1625546070787,2.24025567,34547.0,34546.0,4.00032863]
[1625546071492,2.24025567,34547.0,34546.0,2.81078269]
[1625546071590,2.22308983,34547.0,34546.0,2.81078269]
[1625546071788,2.22308983,34547.0,34546.0,2.81421524]
[1625546072091,2.22308983,34547.0,34546.0,2.82500966]
[1625546072190,0.08563724,34547.0,34546.0,5.37176212]
[1625546072339,0.71816663,34550.0,34546.0,5.37176212]
[1625546072440,0.71816663,34550.0,34547.0,0.059]
[1625546072542,0.65916663,34550.0,34547.0,0.059]
[1625546072743,0.001,34553.0,34550.0,5.1639]
[1625546072840,0.001,34553.0,34552.0,0.48115088]
[1625546073041,1.13860871,34554.0,34552.0,0.54015088]
[1625546073142,0.63790871,34554.0,34553.0,0.059]
[1625546073242,0.57890871,34554.0,34553.0,0.38826]
[1625546073343,0.46520871,34554.0,34553.0,0.45803363]
[1625546073443,0.43320871,34554.0,34553.0,0.46146524]
[1625546073542,0.43320871,34554.0,34553.0,0.89713324]
[1625546073643,1.36741492,34560.0,34553.0,0.89713324]
[1625546073745,1.36741492,34560.0,34554.0,0.01076382]
[1625546073844,1.36741492,34560.0,34554.0,0.06976382]
[1625546073942,1.36741492,34560.0,34554.0,0.07319533]
[1625546074043,1.36741492,34560.0,34555.0,0.44724518]
[1625546074144,1.36741492,34560.0,34555.0,0.56524518]
[1625546074243,1.36741492,34560.0,34556.0,0.01419622]
[1625546074348,0.003,34563.0,34557.0,1.35465452]
[1625546074543,0.003,34563.0,34557.0,1.47608607]
[1625546074643,0.003,34563.0,34557.0,1.90595707]
[1625546074745,0.003,34563.0,34557.0,1.90252552]
[1625546074845,0.003,34563.0,34557.0,2.39444004]
[1625546075294,0.002,34559.0,34557.0,2.39444004]
[1625546075495,0.002,34559.0,34557.0,2.3836764]
[1625546076097,0.002,34559.0,34558.0,1.35447128]
[1625546076196,0.002,34559.0,34558.0,1.41347128]
[1625546076296,0.002,34559.0,34558.0,1.47247128]
[1625546076396,0.002,34559.0,34558.0,1.90699628]
[1625546076854,0.002,34559.0,34558.0,2.14757172]
[1625546077454,0.002,34559.0,34558.0,2.08857172]
[1625546077904,0.002,34559.0,34558.0,2.14757172]
[1625546078004,0.002,34559.0,34558.0,2.08857172]
[1625546078104,0.002,34559.0,34558.0,0.73410044]
[1625546078205,0.002,34559.0,34558.0,0.79310044]
[1625546079308,0.001,34561.0,34558.0,2.14662326]
[1625546079658,0.34251869,34561.0,34558.0,2.14662326]
[1625546080009,0.34251869,34561.0,34558.0,0.79310044]
[1625546080862,0.34251869,34561.0,34560.0,0.24057544]
[1625546081062,0.34251869,34561.0,34560.0,0.29957544]
[1625546081813,0.34251869,34561.0,34560.0,0.24057544]
[1625546082616,0.001,34561.0,34560.0,0.24057544]
[1625546083916,0.001,34561.0,34560.0,0.57904493]
[1625546084416,0.001,34561.0,34560.0,0.24057544]
[1625546085267,0.06,34561.0,34560.0,0.24057544]
[1625546085367,1.36506525,34562.0,34560.0,0.24057544]
[1625546085467,1.36510718,34561.0,34560.0,0.24057544]
[1625546085568,1.42410718,34561.0,34560.0,0.24057544]
[1625546085669,1.36510718,34561.0,34560.0,0.24057544]
[1625546085919,1.48310718,34561.0,34560.0,0.24057544]
[1625546086171,1.42410718,34561.0,34560.0,0.24057544]
[1625546086373,1.36510718,34561.0,34560.0,0.24057544]
[1625546086723,1.36508375,34562.0,34560.0,0.24057544]
[1625546086826,1.36508375,34562.0,34560.0,0.46540544]
[1625546087023,0.24057544,34563.0,34560.0,0.46540544]
[1625546087527,1.36605267,34564.0,34560.0,0.46540544]
[1625546087625,1.36605267,34564.0,34560.0,0.8039263]
[1625546088027,1.42505267,34564.0,34560.0,0.8039263]
[1625546088176,1.36605267,34564.0,34560.0,0.8039263]
[1625546088829,0.001,34564.0,34560.0,0.8039263]
[1625546089234,1.3649463,34563.0,34560.0,0.46540544]
[1625546089383,1.3649463,34563.0,34560.0,0.24057544]
[1625546090034,1.36493951,34562.0,34560.0,0.24057544]
[1625546094043,1.36493951,34562.0,34560.0,0.29957544]
[1625546094342,1.19426638,34561.0,34560.0,0.35857544]
[1625546094744,1.19515686,34564.0,34560.0,0.69037544]
[1625546094943,0.001,34564.0,34563.0,0.24057544]
[1625546095143,0.001,34564.0,34563.0,0.29957544]
[1625546095543,1.19513963,34564.0,34563.0,0.29957544]
[1625546095893,0.47523963,34564.0,34563.0,0.29957544]
[1625546095995,1.19406796,34565.0,34563.0,0.29957544]
[1625546096594,0.34122209,34566.0,34563.0,0.29957544]
[1625546096994,0.34122209,34566.0,34565.0,0.48115088]
[1625546097095,0.34122209,34566.0,34565.0,0.54015088]
[1625546098000,0.34122209,34566.0,34565.0,0.48115088]
[1625546098203,0.34122209,34566.0,34565.0,0.81925418]
[1625546098598,0.002,34570.0,34565.0,0.81925418]
[1625546098849,0.002,34570.0,34565.0,0.87825418]
[1625546098951,0.01715682,34569.0,34565.0,0.87825418]
[1625546099156,0.01715682,34569.0,34565.0,0.81925418]
[1625546099455,0.01715682,34569.0,34565.0,0.87825418]
[1625546099556,0.01715682,34569.0,34565.0,0.54015088]
[1625546099960,0.01715682,34569.0,34565.0,0.87825453]
[1625546100307,0.01715682,34569.0,34566.0,0.33793282]
[1625546100408,0.01715682,34569.0,34566.0,0.39693282]
[1625546100508,0.01715682,34569.0,34566.0,0.33793282]
[1625546100659,0.3410187,34567.0,34566.0,0.33793282]
[1625546101010,0.3410187,34567.0,34566.0,0.57850826]
[1625546101111,0.35817532,34567.0,34566.0,0.57850826]
[1625546101511,0.35817532,34567.0,34566.0,0.63750826]
[1625546101616,0.35817532,34567.0,34566.0,0.29957544]
[1625546101618,0.01715662,34567.0,34566.0,0.29957544]
[1625546101813,0.01715662,34567.0,34566.0,0.24057544]
[1625546102114,0.002,34570.0,34566.0,0.24057544]
[1625546102115,0.01715738,34569.0,34566.0,0.29957544]
[1625546102214,0.01715738,34569.0,34566.0,0.24057544]
[1625546102414,0.01715733,34567.0,34566.0,0.24057544]
[1625546102614,0.01715771,34569.0,34566.0,0.24057544]
[1625546102914,0.01715768,34567.0,34566.0,0.24057544]
[1625546103015,0.999624,34567.0,34566.0,0.24057544]
[1625546103214,2.06418282,34567.0,34566.0,0.24057544]
[1625546103418,2.08134163,34567.0,34566.0,0.24057544]
[1625546103718,3.44487699,34567.0,34566.0,0.24057544]
[1625546104017,3.47919512,34567.0,34566.0,0.24057544]
[1625546104119,3.53819512,34567.0,34566.0,0.24057544]
[1625546104221,3.53819512,34567.0,34558.0,0.33869268]
[1625546104418,1.02290827,34560.0,34556.0,0.24057544]
[1625546104518,1.46333827,34560.0,34556.0,0.24057544]
[1625546104819,0.01716093,34559.0,34556.0,0.24057544]
[1625546104919,0.13516093,34559.0,34556.0,0.24057544]
[1625546105021,1.50407846,34558.0,34556.0,0.24057544]
[1625546105119,1.62207846,34558.0,34556.0,0.24057544]
[1625546105319,1.63924048,34558.0,34554.0,0.33922477]
[1625546105420,1.63924048,34558.0,34553.0,0.57986227]
[1625546105922,1.63924048,34558.0,34553.0,0.24057544]
[1625546106021,1.58024048,34558.0,34553.0,0.24057544]
[1625546106321,1.58024048,34558.0,34553.0,0.24357544]
[1625546106421,1.58024048,34558.0,34553.0,0.6418983]
[1625546106620,0.01716199,34557.0,34553.0,0.6418983]
[1625546107022,0.24057544,34554.0,34553.0,0.6418983]
[1625546107124,0.58164586,34554.0,34553.0,0.81155185]
[1625546107425,0.76943019,34554.0,34553.0,0.30257544]
[1625546107524,1.11463019,34554.0,34553.0,0.30257544]
[1625546107773,0.77355977,34554.0,34553.0,0.30257544]
[1625546107973,0.75639788,34554.0,34553.0,0.36157544]
[1625546108072,0.75639788,34554.0,34553.0,0.46157544]
[1625546108274,0.58577544,34554.0,34553.0,1.47864739]
[1625546108374,0.3452,34554.0,34553.0,1.41964739]
[1625546108574,0.51167401,34556.0,34553.0,1.36064739]
[1625546108777,0.57067401,34556.0,34553.0,1.41964739]
[1625546108976,0.51167401,34556.0,34553.0,1.47864739]
[1625546109076,0.51167017,34557.0,34555.0,0.24057544]
[1625546109174,0.51167017,34557.0,34555.0,0.35857544]
[1625546109376,0.41117647,34558.0,34555.0,1.37488058]
[1625546109475,0.41117647,34558.0,34555.0,1.31588058]
[1625546109677,0.41117647,34558.0,34556.0,0.1]
[1625546109777,0.75220878,34558.0,34557.0,0.33876663]
[1625546109927,0.75220878,34558.0,34557.0,0.39776663]
[1625546110031,0.75220878,34558.0,34557.0,0.45676663]
[1625546110129,0.75220878,34558.0,34557.0,0.39776663]
[1625546110529,0.51163334,34558.0,34557.0,0.39776663]
[1625546110629,0.17061168,34559.0,34557.0,0.059]
[1625546110929,0.17061168,34559.0,34557.0,0.118]
[1625546111030,0.17061168,34559.0,34558.0,0.24057544]
[1625546111131,0.51161607,34561.0,34558.0,1.31462404]
[1625546111229,0.51161607,34561.0,34558.0,1.37362404]
[1625546111329,0.51161607,34561.0,34558.0,1.81014304]
[1625546111431,0.51161607,34561.0,34559.0,0.00343142]
[1625546111529,0.51161607,34561.0,34559.0,0.06243142]
[1625546111629,1.02272087,34564.0,34560.0,1.01390968]
[1625546111630,0.17058548,34564.0,34560.0,1.01390968]
[1625546111729,0.17058548,34564.0,34560.0,1.44541768]
[1625546111830,0.17058548,34564.0,34560.0,1.56341768]
[1625546112130,0.51158089,34565.0,34562.0,1.01332133]
[1625546112230,0.51158089,34565.0,34562.0,1.13132133]
[1625546112330,0.51158089,34565.0,34562.0,1.07232133]
[1625546112430,0.17058034,34565.0,34564.0,0.33768284]
[1625546112533,0.17058034,34565.0,34564.0,0.39668284]
[1625546112732,0.01715632,34565.0,34564.0,0.059]
[1625546113032,0.51153514,34566.0,34564.0,0.78072632]
[1625546113681,0.51153514,34566.0,34565.0,0.50643141]
[1625546113885,0.51153514,34566.0,34565.0,0.56543141]
[1625546114084,0.52869179,34566.0,34565.0,0.50643141]
[1625546114484,0.52869179,34566.0,34565.0,0.56543141]
[1625546115137,0.01715665,34566.0,34565.0,0.059]
[1625546115384,0.01715665,34566.0,34564.0,0.72172632]
[1625546115487,0.01715665,34566.0,34565.0,0.50670033]
[1625546115788,0.01715665,34566.0,34565.0,0.56570033]
[1625546115888,0.01715665,34566.0,34564.0,0.72172632]
[1625546115889,1.02292599,34566.0,34564.0,0.89069948]
[1625546115987,1.14092599,34566.0,34564.0,0.89069948]
[1625546116088,1.48950599,34566.0,34564.0,0.89069948]
[1625546116187,1.50666369,34566.0,34564.0,0.89069948]
[1625546116387,1.02301172,34565.0,34564.0,0.89069948]
[1625546116487,1.09916995,34565.0,34564.0,0.72172632]
[1625546116989,2.29315987,34565.0,34564.0,0.72172632]
[1625546117090,2.53373531,34565.0,34564.0,0.72172632]
[1625546117542,3.89833866,34565.0,34564.0,0.72172632]
[1625546118091,3.95733866,34565.0,34564.0,0.72172632]
[1625546118292,3.95733866,34565.0,34562.0,0.001]
[1625546118695,2.38841755,34563.0,34562.0,0.001]
[1625546118793,3.64162633,34563.0,34562.0,0.001]
[1625546118894,3.70062633,34563.0,34562.0,0.001]
[1625546119044,3.94120177,34563.0,34562.0,0.001]
[1625546119145,5.49432467,34563.0,34562.0,0.001]
[1625546119995,3.95836293,34563.0,34562.0,0.001]
[1625546122050,3.89936293,34563.0,34562.0,0.001]
[1625546122247,3.84036293,34563.0,34562.0,0.06]
[1625546122350,3.84036293,34563.0,34562.0,0.001]
[1625546122450,2.47557727,34563.0,34562.0,0.50886304]
[1625546122900,1.28136849,34563.0,34562.0,0.001]
[1625546123003,1.53658849,34563.0,34562.0,0.001]
[1625546123102,1.59558849,34563.0,34562.0,0.24157544]
[1625546123455,1.59558849,34563.0,34562.0,0.7496652]
[1625546123456,2.79100277,34563.0,34562.0,0.7496652]
[1625546124055,2.79100277,34563.0,34562.0,0.24157544]
[1625546124460,4.15732418,34563.0,34562.0,0.24157544]
[1625546126013,4.09832418,34563.0,34562.0,0.24157544]
[1625546126112,4.09832418,34563.0,34562.0,0.30057544]
[1625546126515,2.73200277,34563.0,34562.0,0.8058432]
[1625546127120,2.73200277,34563.0,34562.0,0.30057544]
[1625546127366,2.73200277,34563.0,34562.0,0.29957544]
[1625546127921,2.73200277,34563.0,34562.0,1.31022699]
[1625546128117,2.73200277,34563.0,34562.0,1.25122699]
[1625546128217,2.73200277,34563.0,34562.0,1.31022699]
[1625546128669,2.73200277,34563.0,34562.0,0.29957544]
[1625546128770,2.71484161,34563.0,34562.0,0.29957544]
[1625546129021,2.73200017,34563.0,34562.0,0.29957544]
[1625546129320,2.23620473,34563.0,34562.0,0.56883544]
[1625546129571,1.04079045,34563.0,34562.0,2.01620973]
[1625546129771,1.04079045,34563.0,34562.0,2.07520973]
[1625546129873,1.02363189,34563.0,34562.0,2.07520973]
[1625546130024,0.34220861,34563.0,34562.0,4.60426225]
[1625546130224,0.34220861,34563.0,34562.0,4.61497114]
[1625546130326,0.34220861,34563.0,34562.0,4.61840246]
[1625546130574,0.51329584,34564.0,34562.0,4.61840246]
[1625546130826,0.51329584,34564.0,34563.0,0.01070364]
[1625546130925,0.51329584,34564.0,34563.0,0.13213491]
[1625546131025,0.17115561,34564.0,34563.0,3.65864058]
[1625546131126,0.17115561,34564.0,34563.0,4.32268875]
[1625546131476,0.51329943,34564.0,34563.0,4.32268875]
[1625546131577,0.51329943,34564.0,34563.0,4.33339117]
[1625546131775,0.17115561,34564.0,34563.0,4.33339117]
[1625546132729,0.51338231,34565.0,34563.0,5.01052344]
[1625546132929,0.51338231,34565.0,34563.0,4.99982102]
[1625546133032,0.17115738,34565.0,34564.0,4.21097529]
[1625546133128,0.17115738,34565.0,34564.0,4.51055073]
[1625546133230,0.17115738,34565.0,34564.0,4.56955073]
[1625546133331,0.17115738,34565.0,34564.0,5.00199473]
[1625546133529,0.51329995,34565.0,34564.0,5.00199473]
[1625546133881,0.68411782,34565.0,34564.0,5.00199473]
[1625546134635,0.68411782,34565.0,34564.0,4.94299473]
[1625546134839,1.71010569,34565.0,34564.0,3.59548264]
[1625546135236,1.71010569,34565.0,34564.0,2.41640956]